fUST/lending_fUST_20250301
["ID","MTS","AMOUNT","RATE_DAILY","PERIOD"]
[354928945,1740828638771,-541.01,0.00032498,2]
[354928946,1740828638781,-500.0,0.00032498,2]
[354928947,1740828638790,-1066.95,0.00032498,2]
[354928948,1740828638800,-1319.99,0.00032498,2]
[354928949,1740828638809,-500.0,0.00032498,2]
[354928950,1740828638819,-806.57,0.00032498,2]
[354928951,1740828638828,-800.29,0.00032498,2]
[354928952,1740828638837,-500.0,0.00032498,2]
[354928953,1740828638846,-500.0,0.00032498,2]
[354928954,1740828638856,-1128.91,0.00032498,2]
[354928955,1740828638865,-500.0,0.00032498,2]
[354928956,1740828638875,-500.0,0.00032498,2]
[354928957,1740828638884,-967.25,0.00032498,2]
[354928958,1740828638894,-500.0,0.00032498,2]
[354928959,1740828638903,-500.0,0.00032498,2]
[354928960,1740828638912,-500.0,0.00032498,2]
[354928961,1740828638922,-1200.66,0.00032498,2]
[354928962,1740828638932,-901.58,0.00032498,2]
[354928963,1740828638942,-500.0,0.00032498,2]
[354928964,1740828638957,-500.0,0.00032498,2]
[354928965,1740828638966,-500.0,0.00032498,2]
[354928966,1740828638976,-500.0,0.00032498,2]
[354928967,1740828638986,-500.0,0.00032498,2]
[354928968,1740828638997,-500.0,0.00032498,2]
[354928969,1740828639008,-665.14,0.00032498,2]
[354928970,1740828639018,-500.0,0.00032498,2]
[354928971,1740828639029,-907.45,0.00032498,2]
[354928972,1740828639039,-500.0,0.00032498,2]
[354928973,1740828639050,-1520.5,0.00032498,2]
[354928974,1740828639060,-500.0,0.00032498,2]
[354928975,1740828639071,-1401.64,0.00032498,2]
[354928976,1740828639081,-864.78,0.00032498,2]
[354928977,1740828639091,-666.17,0.00032498,2]
[354928978,1740828639100,-500.0,0.00032498,2]
[354928979,1740828639110,-500.0,0.00032498,2]
[354928980,1740828639119,-599.45,0.00032498,2]
[354928981,1740828639129,-500.0,0.00032498,2]
[354928982,1740828639138,-12639.73,0.00032498,2]
[354928983,1740828639148,-552.44,0.00032498,2]
[354928984,1740828639158,-500.0,0.00032498,2]
[354928985,1740828639167,-2705.17,0.00032498,2]
[354928986,1740828639177,-726.57,0.00032498,2]
[354928987,1740828639187,-500.0,0.00032498,2]
[354928988,1740828639198,-1698.21,0.00032498,2]
[354928989,1740828639540,-1862.11,0.00032498,2]
[354928991,1740828639562,-500.0,0.00032498,2]
[354928992,1740828639572,-500.0,0.00032498,2]
[354928994,1740828639582,-500.0,0.00032498,2]
[354928995,1740828639592,-1006.57,0.00032498,2]
[354928996,1740828639601,-525.28,0.00032498,2]
[354928997,1740828639611,-2476.29,0.00032498,2]
[354928998,1740828639620,-500.0,0.00032498,2]
[354928999,1740828639630,-500.0,0.00032498,2]
[354929000,1740828639639,-500.0,0.00032498,2]
[354929001,1740828639649,-500.0,0.00032498,2]
[354929002,1740828639658,-900.14,0.00032498,2]
[354929003,1740828639668,-500.0,0.00032498,2]
[354929004,1740828639677,-520.59692604,0.00032498,2]
[354929005,1740828639687,-768.95,0.00032498,2]
[354929006,1740828639699,-500.0,0.00032498,2]
[354929007,1740828639708,-2173.0,0.00032499,2]
[354929009,1740828639718,-1367.72,0.00032499,2]
[354929011,1740828639728,-500.0,0.00032499,2]
[354929012,1740828639739,-2167.36,0.000325,2]
[354929013,1740828639749,-500.0,0.00032574,2]
[354929014,1740828639759,-500.0,0.00032574,2]
[354929015,1740828639769,-458.64852162,0.00032574,2]
[354929016,1740828639779,-500.0,0.00032574,2]
[354929017,1740828639788,-1167.23,0.00032574,2]
[354929018,1740828639799,-500.0,0.00032574,2]
[354929019,1740828639809,-543.92,0.00032574,2]
[354929020,1740828639819,-500.0,0.00032574,2]
[354929021,1740828639829,-500.0,0.00032574,2]
[354929022,1740828639839,-436.24678386,0.00032574,2]
[354929023,1740828639848,-500.0,0.00032574,2]
[354929024,1740828639858,-500.0,0.00032574,2]
[354929025,1740828639868,-500.0,0.00032574,2]
[354929027,1740828639878,-1082.37,0.00032574,2]
[354929029,1740828639887,-734.8,0.00032574,2]
[354929030,1740828639897,-500.0,0.00032574,2]
[354929031,1740828639906,-224.60972074,0.00032574,2]
[354929032,1740828639916,-500.0,0.00032574,2]
[354929033,1740828639927,-500.0,0.00032574,2]
[354929035,1740828639936,-500.0,0.00032574,2]
[354929036,1740828639947,-500.0,0.00032574,2]
[354929038,1740828639956,-500.0,0.00032574,2]
[354929039,1740828639966,-504.28014344,0.00032574,2]
[354929040,1740828639976,-500.0,0.00032574,2]
[354929041,1740828639986,-500.0,0.00032574,2]
[354929043,1740828639996,-532.81287122,0.00032574,2]
[354929044,1740828640006,-500.0,0.00032574,2]
[354929045,1740828640015,-500.0,0.00032574,2]
[354929046,1740828640025,-500.0,0.00032574,2]
[354929047,1740828640034,-500.0,0.00032574,2]
[354929048,1740828640044,-598.17,0.00032574,2]
[354929049,1740828640053,-500.0,0.00032574,2]
[354929050,1740828640062,-596.87,0.00032574,2]
[354929051,1740828640072,-500.0,0.00032574,2]
[354929052,1740828640081,-504.36,0.00032574,2]
[354929053,1740828640091,-500.0,0.00032574,2]
[354929054,1740828640101,-500.0,0.00032574,2]
[354929055,1740828640111,-558.85,0.00032574,2]
[354929056,1740828640120,-300.0,0.00032574,120]
[354929057,1740828640130,-500.0,0.00032574,2]
[354929058,1740828640139,-500.0,0.00032574,2]
[354929059,1740828640148,-500.0,0.00032574,2]
[354929061,1740828640158,-531.58,0.00032574,2]
[354929062,1740828640167,-500.0,0.00032574,2]
[354929064,1740828640177,-995.38,0.00032574,2]
[354929065,1740828640186,-500.0,0.00032574,2]
[354929066,1740828640196,-500.0,0.00032574,2]
[354929067,1740828640206,-500.0,0.00032574,2]
[354929068,1740828640215,-151.0,0.00032574,7]
[354929069,1740828640224,-480.990783,0.00032574,7]
[354929070,1740828640234,-480.990783,0.00032574,7]
[354929071,1740828640243,-500.0,0.00032574,2]
[354929072,1740828640253,-500.0,0.00032574,2]
[354929073,1740828640262,-250.09397696,0.00032574,2]
[354929074,1740828640271,-500.0,0.00032574,2]
[354929075,1740828640280,-888.56,0.00032574,2]
[354929076,1740828640289,-500.0,0.00032574,2]
[354929077,1740828640298,-500.0,0.00032574,2]
[354929078,1740828640308,-500.0,0.00032574,2]
[354929079,1740828640317,-500.0,0.00032574,2]
[354929080,1740828640327,-510.19659793,0.00032574,2]
[354929081,1740828640336,-1345.27,0.00032574,2]
[354929082,1740828640345,-491.93756806,0.00032574,2]
[354929083,1740828640354,-512.61904739,0.00032574,2]
[354929084,1740828640376,-500.0,0.00032574,2]
[354929085,1740828640387,-500.0,0.00032574,2]
[354929086,1740828640398,-1678.89,0.00032574,2]
[354929087,1740828640411,-979.61,0.00032574,2]
[354929088,1740828640421,-597.17,0.00032574,2]
[354929089,1740828640432,-500.0,0.00032574,2]
[354929090,1740828640442,-500.0,0.00032574,2]
[354929091,1740828640453,-500.0,0.00032574,2]
[354929092,1740828640463,-500.0,0.00032574,2]
[354929093,1740828640474,-500.0,0.00032574,2]
[354929094,1740828640484,-746.78,0.00032574,2]
[354929095,1740828640495,-500.0,0.00032574,2]
[354929096,1740828640506,-151.0,0.00032574,7]
[354929097,1740828640516,-726.17,0.00032574,2]
[354929098,1740828640526,-500.0,0.00032574,2]
[354929099,1740828640536,-500.0,0.00032574,2]
[354929100,1740828640547,-500.0,0.00032574,2]
[354929101,1740828640557,-525.66,0.00032574,2]
[354929102,1740828640568,-500.0,0.00032574,2]
[354929103,1740828640578,-577.84,0.00032574,2]
[354929104,1740828640588,-500.0,0.00032574,2]
[354929105,1740828640598,-666.796252,0.00032574,7]
[354929106,1740828640611,-666.796252,0.00032574,7]
[354929107,1740828640621,-961.25,0.00032574,2]
[354929108,1740828640631,-500.0,0.00032574,2]
[354929109,1740828640641,-500.0,0.00032574,2]
[354929110,1740828640652,-500.0,0.00032574,2]
[354929111,1740828640663,-500.0,0.00032574,2]
[354929112,1740828640673,-500.0,0.00032574,2]
[354929113,1740828640684,-151.0,0.00032574,7]
[354929114,1740828640694,-151.0,0.00032574,7]
[354929115,1740828640705,-500.0,0.00032574,2]
[354929116,1740828640715,-1193.64,0.00032574,2]
[354929117,1740828640725,-500.0,0.00032574,2]
[354929118,1740828640734,-151.0,0.00032574,7]
[354929119,1740828640745,-500.0,0.00032574,2]
[354929120,1740828640755,-153.573644,0.00032574,7]
[354929121,1740828640764,-153.573644,0.00032574,7]
[354929122,1740828640775,-500.0,0.00032574,2]
[354929123,1740828640785,-504.01484,0.00032574,7]
[354929124,1740828640795,-500.0,0.00032574,2]
[354929125,1740828640804,-504.01484,0.00032574,7]
[354929126,1740828640815,-500.0,0.00032574,2]
[354929127,1740828640824,-1161.95,0.00032574,2]
[354929128,1740828640835,-533.095441,0.00032574,7]
[354929129,1740828640844,-1531.32,0.00032574,2]
[354929130,1740828640854,-533.095441,0.00032574,7]
[354929131,1740828640864,-151.0,0.00032574,7]
[354929132,1740828640874,-1598.214686,0.00032574,7]
[354929133,1740828640884,-1598.214686,0.00032574,7]
[354929134,1740828640894,-500.0,0.00032574,2]
[354929135,1740828640904,-605.63,0.00032574,2]
[354929136,1740828640914,-500.0,0.00032574,2]
[354929137,1740828640924,-500.0,0.00032574,2]
[354929138,1740828640934,-1244.69,0.00032574,2]
[354929139,1740828640945,-500.0,0.00032574,2]
[354929140,1740828640955,-241.244594,0.00032574,7]
[354929141,1740828640965,-246.804179,0.00032574,7]
[354929142,1740828640975,-241.244594,0.00032574,7]
[354929143,1740828640985,-246.804179,0.00032574,7]
[354929144,1740828640995,-642.24,0.00032574,2]
[354929145,1740828641005,-220.492046,0.00032574,7]
[354929146,1740828641015,-151.0,0.00032574,7]
[354929147,1740828641025,-500.0,0.00032574,2]
[354929148,1740828641034,-220.492046,0.00032574,7]
[354929149,1740828641044,-151.0,0.00032574,7]
[354929150,1740828641053,-253.551633,0.00032574,7]
[354929151,1740828641063,-253.551633,0.00032574,7]
[354929152,1740828641073,-151.0,0.00032574,7]
[354929153,1740828641083,-500.0,0.00032574,2]
[354929154,1740828641092,-151.0,0.00032574,7]
[354929155,1740828641102,-500.0,0.00032574,2]
[354929156,1740828641111,-153.496838,0.00032574,7]
[354929157,1740828641121,-151.0,0.00032574,7]
[354929158,1740828641130,-151.0,0.00032574,7]
[354929159,1740828641140,-2000.0,0.000326,2]
[354929160,1740828641150,-500.0,0.00032671,2]
[354929161,1740828641160,-500.0,0.00032671,2]
[354929162,1740828641169,-1923.98,0.00032671,2]
[354929163,1740828641179,-2204.83,0.00032671,2]
[354929164,1740828641189,-265.77346555,0.00032671,2]
[354929165,1740828641200,-717.44,0.00032671,2]
[354929166,1740828641210,-3786.35,0.00032671,2]
[354929167,1740828641219,-622.08,0.00032671,2]
[354929168,1740828641229,-505.16,0.00032671,2]
[354929169,1740828641239,-1444.21,0.00032671,2]
[354929170,1740828641248,-500.0,0.00032671,2]
[354929171,1740828641258,-24802.57,0.00032671,2]
[354929172,1740828641268,-518.86,0.00032671,2]
[354929173,1740828641278,-3525.03,0.00032671,2]
[354929174,1740828641287,-3990.45,0.00032671,2]
[354929175,1740828641297,-6317.06,0.00032671,2]
[354929176,1740828641307,-1474.43,0.00032671,5]
[354929177,1740828641316,-2239.17,0.00032671,2]
[354929178,1740828641326,-1620.01,0.00032671,2]
[354929179,1740828641335,-8561.1,0.00032671,2]
[354929180,1740828641345,-500.0,0.00032671,2]
[354929181,1740828641354,-918.51,0.00032671,2]
[354929182,1740828641364,-1217.49,0.00032671,2]
[354929183,1740828641374,-500.0,0.00032671,2]
[354929184,1740828641383,-4254.46,0.00032671,2]
[354929185,1740828641393,-3524.65,0.00032671,2]
[354929186,1740828641403,-1269.0,0.00032671,2]
[354929187,1740828641412,-500.0,0.00032671,2]
[354929188,1740828641430,-696.03,0.00032671,2]
[354929189,1740828641440,-1588.95,0.00032671,2]
[354929190,1740828641451,-8045.32,0.00032671,2]
[354929191,1740828641462,-500.0,0.00032672,2]
[354929192,1740828641472,-500.0,0.00032672,2]
[354929193,1740828641482,-500.0,0.00032672,2]
[354929194,1740828641494,-500.0,0.00032672,2]
[354929195,1740828641504,-1108.64,0.00032672,2]
[354929196,1740828641513,-500.0,0.00032672,2]
[354929197,1740828641523,-500.0,0.00032672,2]
[354929198,1740828641534,-500.0,0.00032672,2]
[354929199,1740828641544,-500.0,0.00032672,2]
[354929200,1740828641554,-500.0,0.00032672,2]
[354929201,1740828641564,-629.74,0.00032672,2]
[354929202,1740828641574,-500.0,0.00032672,2]
[354929203,1740828641584,-500.0,0.00032672,2]
[354929204,1740828641594,-500.0,0.00032672,2]
[354929205,1740828641604,-500.0,0.00032672,2]
[354929206,1740828641613,-500.0,0.00032672,2]
[354929207,1740828641624,-520.77263,0.00032672,2]
[354929208,1740828641634,-500.0,0.00032672,2]
[354929209,1740828641644,-500.0,0.00032672,2]
[354929210,1740828641654,-919.03,0.00032672,2]
[354929211,1740828641664,-500.0,0.00032672,2]
[354929212,1740828641674,-337.45718296,0.00032672,2]
[354929213,1740828641684,-500.0,0.00032672,2]
[354929214,1740828641695,-615.39,0.00032672,2]
[354929215,1740828641707,-500.0,0.00032672,2]
[354929216,1740828641717,-500.0,0.00032672,2]
[354929217,1740828641727,-500.0,0.00032672,2]
[354929218,1740828641737,-500.0,0.00032672,2]
[354929219,1740828641748,-736.87,0.00032672,2]
[354929220,1740828641759,-762.1,0.00032672,2]
[354929221,1740828641768,-200.0,0.00032672,2]
[354929222,1740828641779,-524.04,0.00032672,2]
[354929223,1740828641788,-736.17,0.00032672,2]
[354929224,1740828641797,-574.06167575,0.00032672,2]
[354929225,1740828641807,-500.0,0.00032672,2]
[354929226,1740828641816,-605.9912609,0.00032672,2]
[354929227,1740828641826,-500.0,0.00032672,2]
[354929228,1740828641835,-151.0,0.00032672,7]
[354929229,1740828641845,-500.0,0.00032672,2]
[354929230,1740828641854,-151.0,0.00032672,7]
[354929231,1740828641864,-500.0,0.00032672,2]
[354929232,1740828641873,-701.55,0.00032672,2]
[354929233,1740828641883,-500.0,0.00032672,2]
[354929234,1740828641893,-990.2,0.00032672,2]
[354929235,1740828641903,-1611.53,0.00032672,2]
[354929236,1740828641913,-151.0,0.00032672,7]
[354929237,1740828641923,-151.0,0.00032672,7]
[354929238,1740828641933,-500.0,0.00032672,2]
[354929239,1740828641942,-500.0,0.00032672,2]
[354929240,1740828642071,-243.061761,0.00032672,7]
[354929241,1740828642082,-500.0,0.00032672,2]
[354929242,1740828642092,-151.0,0.00032672,7]
[354929243,1740828642102,-243.061761,0.00032672,7]
[354929244,1740828642111,-542.96,0.00032672,2]
[354929245,1740828642120,-500.0,0.00032672,2]
[354929246,1740828642129,-883.86,0.00032672,2]
[354929247,1740828642138,-500.0,0.00032672,2]
[354929248,1740828642148,-500.0,0.00032672,2]
[354929249,1740828642157,-500.0,0.00032672,2]
[354929250,1740828642166,-500.0,0.00032672,2]
[354929251,1740828642175,-151.0,0.00032672,7]
[354929252,1740828642184,-151.0,0.00032672,7]
[354929253,1740828642193,-898.05,0.00032672,2]
[354929254,1740828642204,-1353.65,0.00032672,2]
[354929255,1740828642213,-1087.652867,0.00032672,7]
[354929256,1740828642222,-1696.93,0.00032672,2]
[354929257,1740828642231,-1087.652867,0.00032672,7]
[354929258,1740828642240,-604.27978795,0.00032672,2]
[354929259,1740828642250,-500.0,0.00032672,2]
[354929260,1740828642259,-500.0,0.00032672,2]
[354929261,1740828642268,-500.0,0.00032672,2]
[354929262,1740828642277,-500.0,0.00032672,2]
[354929263,1740828642287,-1647.71,0.00032672,2]
[354929264,1740828642296,-500.85,0.00032672,2]
[354929265,1740828642306,-500.0,0.00032672,2]
[354929266,1740828642315,-270.166846,0.00032672,7]
[354929267,1740828642324,-270.166846,0.00032672,7]
[354929268,1740828642334,-543.1,0.00032672,2]
[354929269,1740828642343,-500.0,0.00032672,2]
[354929270,1740828642353,-500.0,0.00032672,2]
[354929271,1740828642362,-500.0,0.00032672,2]
[354929272,1740828642372,-500.0,0.00032672,2]
[354929273,1740828642381,-500.0,0.00032672,2]
[354929274,1740828642390,-1665.36,0.00032672,2]
[354929276,1740828642399,-685.49,0.00032672,2]
[354929278,1740828642411,-151.0,0.00032672,7]
[354929279,1740828642420,-500.0,0.00032672,2]
[354929280,1740828642430,-500.0,0.00032672,2]
[354929281,1740828642439,-932.09,0.00032672,2]
[354929282,1740828642449,-500.0,0.00032672,2]
[354929283,1740828642459,-1244.9,0.00032672,2]
[354929284,1740828642468,-151.0,0.00032672,7]
[354929285,1740828642478,-500.0,0.00032672,2]
[354929286,1740828642487,-151.0,0.00032672,7]
[354929287,1740828642496,-151.0,0.00032672,7]
[354929288,1740828642506,-500.0,0.00032672,2]
[354929290,1740828642515,-805.72,0.00032672,2]
[354929292,1740828642524,-630.93385172,0.00032672,2]
[354929294,1740828642534,-500.0,0.00032672,2]
[354929297,1740828642543,-500.0,0.00032672,2]
[354929298,1740828642553,-505.77088427,0.00032672,2]
[354929299,1740828642563,-713.53,0.00032672,2]
[354929301,1740828642572,-500.0,0.00032672,2]
[354929302,1740828642581,-500.0,0.00032672,2]
[354929304,1740828642591,-500.0,0.00032672,2]
[354929306,1740828642600,-500.0,0.00032672,2]
[354929308,1740828642610,-435.28815636,0.00032672,2]
[354929310,1740828642619,-500.0,0.00032672,2]
[354929311,1740828642628,-638.98,0.00032672,2]
[354929312,1740828642638,-500.0,0.00032672,2]
[354929313,1740828642648,-1384.22,0.00032672,2]
[354929314,1740828642657,-500.0,0.00032672,2]
[354929315,1740828642667,-500.0,0.00032672,2]
[354929316,1740828642677,-500.0,0.00032672,2]
[354929317,1740828642686,-500.0,0.00032672,2]
[354929318,1740828642695,-162.01613741,0.00032672,2]
[354929319,1740828642706,-500.0,0.00032672,2]
[354929320,1740828642715,-500.0,0.00032672,2]
[354929321,1740828642725,-500.0,0.00032672,2]
[354929322,1740828642734,-1251.13,0.00032672,2]
[354929323,1740828642744,-611.30682174,0.00032672,2]
[354929324,1740828642754,-500.0,0.00032672,2]
[354929325,1740828642763,-151.0,0.00032672,7]
[354929326,1740828642772,-500.0,0.00032672,2]
[354929327,1740828642782,-153.573644,0.00032672,7]
[354929328,1740828642791,-820.85,0.00032672,2]
[354929329,1740828642801,-153.573644,0.00032672,7]
[354929330,1740828642811,-507.11,0.00032672,2]
[354929331,1740828642820,-500.0,0.00032672,2]
[354929332,1740828642830,-12735.22,0.00032672,2]
[354929333,1740828642839,-500.0,0.00032672,2]
[354929334,1740828642848,-2189.28,0.00032672,2]
[354929335,1740828642857,-595.46,0.00032672,2]
[354929336,1740828642867,-500.0,0.00032672,2]
[354929337,1740828642877,-500.0,0.00032672,2]
[354929338,1740828642888,-500.0,0.00032672,2]
[354929339,1740828642898,-694.69,0.00032672,2]
[354929340,1740828642907,-500.0,0.00032672,2]
[354929341,1740828642917,-3413.22,0.00032672,2]
[354929342,1740828642927,-500.0,0.00032672,2]
[354929343,1740828642937,-522.12,0.00032672,2]
[354929345,1740828642946,-151.0,0.00032672,7]
[354929346,1740828642958,-817.07,0.00032672,2]
[354929347,1740828642967,-504.01484,0.00032672,7]
[354929348,1740828642976,-681.69,0.00032672,2]
[354929349,1740828642986,-504.01484,0.00032672,7]
[354929350,1740828642995,-500.0,0.00032672,2]
[354929351,1740828643004,-500.0,0.00032672,2]
[354929352,1740828643014,-500.0,0.00032672,2]
[354929353,1740828643023,-819.23,0.00032672,2]
[354929354,1740828643032,-543.98,0.00032672,2]
[354929355,1740828643041,-500.0,0.00032672,2]
[354929356,1740828643052,-2250.89,0.00032672,2]
[354929357,1740828643061,-533.095441,0.00032672,7]
[354929358,1740828643071,-1919.64,0.00032672,2]
[354929359,1740828643080,-1258.68,0.00032672,2]
[354929360,1740828643089,-533.095441,0.00032672,7]
[354929361,1740828643099,-3268.62,0.00032672,2]
[354929362,1740828643109,-1984.99,0.00032672,2]
[354929363,1740828643118,-151.0,0.00032672,7]
[354929364,1740828643127,-500.0,0.00032672,2]
[354929365,1740828643137,-2005.48,0.00032672,2]
[354929366,1740828643146,-1467.72,0.00032672,2]
[354929367,1740828643155,-190751.02,0.00032672,2]
[354929368,1740828643165,-1266.16,0.00032672,2]
[354929369,1740828643174,-500.0,0.00032672,2]
[354929370,1740828643183,-677.16,0.00032672,2]
[354929371,1740828643193,-1598.214686,0.00032672,7]
[354929372,1740828643204,-3618.9,0.00032672,2]
[354929373,1740828643214,-500.0,0.00032672,2]
[354929374,1740828643223,-1598.214686,0.00032672,7]
[354929375,1740828643232,-1573.46,0.00032672,2]
[354929376,1740828643241,-500.0,0.00032672,2]
[354929377,1740828643250,-856.4,0.00032672,2]
[354929378,1740828643259,-1851.16,0.00032672,2]
[354929379,1740828643269,-614.63,0.00032672,2]
[354929380,1740828643278,-1810.25,0.00032672,2]
[354929381,1740828643287,-5280.75,0.00032672,2]
[354929382,1740828643297,-500.0,0.00032672,2]
[354929383,1740828643307,-500.0,0.00032672,2]
[354929384,1740828643316,-11069.88,0.00032672,2]
[354929385,1740828643326,-712.53,0.00032672,2]
[354929386,1740828643335,-630.04,0.00032672,2]
[354929387,1740828643345,-500.0,0.00032672,2]
[354929388,1740828643354,-500.0,0.00032672,2]
[354929389,1740828643364,-2375.52,0.00032672,2]
[354929390,1740828643373,-1130.11,0.00032672,2]
[354929391,1740828643382,-1087.88,0.00032672,2]
[354929392,1740828643391,-500.0,0.00032672,2]
[354929393,1740828643401,-653.59,0.00032672,2]
[354929394,1740828643414,-2654.48,0.00032672,2]
[354929395,1740828643423,-241.244594,0.00032672,7]
[354929396,1740828643432,-241.244594,0.00032672,7]
[354929397,1740828643441,-241.244594,0.00032672,7]
[354929398,1740828643451,-1169.08,0.00032672,2]
[354929399,1740828643462,-500.0,0.00032672,2]
[354929400,1740828643471,-246.804179,0.00032672,7]
[354929401,1740828643480,-508.02,0.00032672,2]
[354929402,1740828643492,-241.244594,0.00032672,7]
[354929403,1740828643502,-241.244594,0.00032672,7]
[354929404,1740828643511,-786.55,0.00032672,2]
[354929405,1740828643520,-241.244594,0.00032672,7]
[354929406,1740828643529,-246.804179,0.00032672,7]
[354929407,1740828643538,-811.26,0.00032672,2]
[354929408,1740828643547,-991.266466,0.00032672,7]
[354929409,1740828643557,-500.0,0.00032672,2]
[354929410,1740828643566,-500.0,0.00032672,2]
[354929411,1740828643575,-1932.35,0.00032672,2]
[354929412,1740828643584,-1485.1,0.00032672,2]
[354929413,1740828643594,-991.266466,0.00032672,7]
[354929414,1740828643603,-792.91,0.00032672,2]
[354929415,1740828643613,-500.0,0.00032672,2]
[354929416,1740828643623,-1449.49,0.00032672,2]
[354929417,1740828643632,-1135.48,0.00032672,2]
[354929418,1740828643642,-500.0,0.00032672,2]
[354929419,1740828643650,-575.57,0.00032672,2]
[354929420,1740828643660,-1164.6,0.00032672,2]
[354929421,1740828643668,-33274.42,0.00032672,2]
[354929422,1740828643678,-220.492046,0.00032672,7]
[354929423,1740828643687,-151.0,0.00032672,7]
[354929424,1740828643696,-500.0,0.00032672,2]
[354929425,1740828643706,-1252.98,0.00032672,2]
[354929426,1740828643715,-220.492046,0.00032672,7]
[354929427,1740828643725,-1536.28,0.00032672,2]
[354929428,1740828643734,-500.0,0.00032672,2]
[354929429,1740828643744,-500.0,0.00032672,2]
[354929430,1740828643753,-500.0,0.00032672,2]
[354929431,1740828643762,-151.0,0.00032672,7]
[354929432,1740828643771,-1633.33,0.00032672,2]
[354929433,1740828643780,-151.0,0.00032672,7]
[354929434,1740828643790,-151.0,0.00032672,7]
[354929435,1740828643799,-2414.76,0.00032672,2]
[354929436,1740828643808,-546.01,0.00032672,2]
[354929437,1740828643818,-253.551633,0.00032672,7]
[354929438,1740828643828,-253.551633,0.00032672,7]
[354929439,1740828643837,-253.551633,0.00032672,7]
[354929440,1740828643847,-500.0,0.00032672,2]
[354929441,1740828643856,-253.551633,0.00032672,7]
[354929442,1740828643866,-253.551633,0.00032672,7]
[354929443,1740828643875,-253.551633,0.00032672,7]
[354929444,1740828643885,-902.1,0.00032672,2]
[354929445,1740828643894,-561.47,0.00032672,2]
[354929446,1740828643903,-2073.08,0.00032672,2]
[354929447,1740828643912,-500.0,0.00032672,2]
[354929448,1740828643920,-1114.64,0.00032672,2]
[354929449,1740828643929,-151.0,0.00032672,7]
[354929450,1740828643936,-151.0,0.00032672,7]
[354929451,1740828643944,-500.0,0.00032672,2]
[354929452,1740828643953,-151.0,0.00032672,7]
[354929453,1740828643962,-151.0,0.00032672,7]
[354929454,1740828643969,-509.06,0.00032672,2]
[354929455,1740828643975,-522.8,0.00032672,2]
[354929456,1740828643983,-500.0,0.00032672,2]
[354929457,1740828643990,-871.6,0.00032672,2]
[354929458,1740828643999,-732.27,0.00032672,2]
[354929459,1740828644006,-500.0,0.00032672,2]
[354929460,1740828644014,-500.0,0.00032672,2]
[354929461,1740828644022,-151.0,0.00032672,7]
[354929462,1740828644031,-151.0,0.00032672,7]
[354929463,1740828644038,-164.321174,0.00032672,7]
[354929464,1740828644046,-517.67099291,0.00032673,5]
[354929465,1740828644054,-500.0,0.00032673,5]
[354929466,1740828644062,-500.0,0.00032673,5]
[354929467,1740828644069,-500.0,0.00032673,5]
[354929468,1740828644076,-263.13838089,0.00032673,5]